fUST/lending_fUST_20240302
["ID","MTS","AMOUNT","RATE_DAILY","PERIOD"]
[316102626,1709356242911,-559.38,0.00021756,2]
[316102627,1709356242920,-500.0,0.00021756,2]
[316102628,1709356242929,-1447.61,0.00021756,2]
[316102629,1709356242938,-500.0,0.00021756,2]
[316102630,1709356242947,-500.0,0.00021756,2]
[316102631,1709356242956,-500.0,0.00021756,2]
[316102632,1709356242966,-586.18,0.00021756,2]
[316102633,1709356242975,-776.92,0.00021756,2]
[316102634,1709356242985,-500.0,0.00021756,2]
[316102635,1709356242994,-951.56,0.00021756,2]
[316102636,1709356243004,-5871.45,0.00021756,2]
[316102637,1709356243013,-500.0,0.00021756,2]
[316102638,1709356243022,-50000.0,0.00021757,4]
[316102639,1709356243031,-500.0,0.00021769,2]
[316102640,1709356243043,-50000.0,0.0002177,3]
[316102641,1709356243053,-500.0,0.00021789,2]
[316102642,1709356243062,-500.0,0.00021789,2]
[316102643,1709356243072,-500.0,0.00021789,2]
[316102644,1709356243081,-619.84,0.0002179,2]
[316102646,1709356243092,-723.16,0.0002179,2]
[316102647,1709356243102,-500.0,0.0002179,2]
[316102649,1709356243113,-500.0,0.0002179,2]
[316102651,1709356243124,-5871.45,0.0002179,2]
[316102652,1709356243134,-5054.70414249,0.00021791,3]
[316102654,1709356243143,-4373.35188537,0.00021791,3]
[316102656,1709356243152,-167.42553369,0.00021808,2]
[316102658,1709356243161,-500.0,0.00021808,2]
[316102660,1709356243171,-263.82361438,0.00021808,2]
[316102662,1709356243180,-500.0,0.00021808,2]
[316102663,1709356243190,-500.0,0.00021808,2]
[316102664,1709356243199,-500.0,0.00021808,2]
[316102665,1709356243208,-500.0,0.00021808,2]
[316102666,1709356243217,-500.0,0.00021808,2]
[316102667,1709356243226,-500.0,0.00021808,2]
[316102670,1709356243236,-500.0,0.00021808,2]
[316102673,1709356243245,-449.46764825,0.00021808,2]
[316102675,1709356243254,-500.0,0.00021808,2]
[316102676,1709356243263,-500.0,0.00021808,2]
[316102677,1709356243273,-500.0,0.00021808,2]
[316102678,1709356243282,-500.0,0.00021808,2]
[316102680,1709356243293,-500.0,0.00021808,2]
[316102682,1709356243303,-500.0,0.00021808,2]
[316102684,1709356243312,-500.0,0.00021808,2]
[316102685,1709356243321,-500.0,0.00021808,2]
[316102688,1709356243331,-158.82040045,0.00021808,2]
[316102690,1709356243340,-500.0,0.00021808,2]
[316102692,1709356243350,-500.0,0.00021808,2]
[316102694,1709356243359,-500.0,0.00021808,2]
[316102697,1709356243368,-500.0,0.00021808,2]
[316102700,1709356243378,-500.0,0.00021808,2]
[316102702,1709356243388,-500.0,0.00021808,2]
[316102705,1709356243397,-500.0,0.00021808,2]
[316102708,1709356243407,-500.0,0.00021808,2]
[316102712,1709356243416,-500.0,0.00021808,2]
[316102716,1709356243425,-500.0,0.00021808,2]
[316102720,1709356243434,-500.0,0.00021808,2]
[316102724,1709356243443,-500.0,0.00021808,2]
[316102728,1709356243451,-500.0,0.00021808,2]
[316102731,1709356243461,-500.0,0.00021808,2]
[316102734,1709356243470,-500.0,0.00021808,2]
[316102737,1709356243479,-500.0,0.00021808,2]
[316102740,1709356243488,-500.0,0.00021808,2]
[316102743,1709356243497,-500.0,0.00021808,2]
[316102746,1709356243508,-500.0,0.00021808,2]
[316102749,1709356243517,-500.0,0.00021808,2]
[316102752,1709356243526,-500.0,0.00021808,2]
[316102755,1709356243535,-500.0,0.00021808,2]
[316102758,1709356243547,-500.0,0.00021808,2]
[316102761,1709356243556,-500.0,0.00021808,2]
[316102764,1709356243566,-500.0,0.00021808,2]
[316102767,1709356243577,-500.0,0.00021808,2]
[316102770,1709356243586,-500.0,0.00021808,2]
[316102773,1709356243595,-500.0,0.00021808,2]
[316102776,1709356243605,-500.0,0.00021808,2]
[316102779,1709356243615,-500.0,0.00021808,2]
[316102781,1709356243624,-500.0,0.00021808,2]
[316102783,1709356243633,-500.0,0.00021808,2]
[316102785,1709356243642,-500.0,0.00021808,2]
[316102787,1709356243651,-500.0,0.00021808,2]
[316102789,1709356243661,-500.0,0.00021808,2]
[316102791,1709356243670,-500.0,0.00021808,2]
[316102793,1709356243679,-500.0,0.00021808,2]
[316102795,1709356243688,-500.0,0.00021808,2]
[316102797,1709356243696,-585.93734898,0.00021808,2]
[316102799,1709356243705,-500.0,0.00021808,2]
[316102801,1709356243714,-500.0,0.00021808,2]
[316102803,1709356243723,-500.0,0.00021808,2]
[316102805,1709356243732,-500.0,0.00021808,2]
[316102807,1709356243741,-500.0,0.00021808,2]
[316102809,1709356243750,-500.0,0.00021808,2]
[316102811,1709356243759,-500.0,0.00021808,2]
[316102813,1709356243768,-500.0,0.00021808,2]
[316102815,1709356243777,-500.0,0.00021808,2]
[316102817,1709356243786,-500.0,0.00021808,2]
[316102819,1709356243798,-500.0,0.00021808,2]
[316102821,1709356243807,-162.39724044,0.00021808,2]
[316102823,1709356243816,-500.0,0.00021808,2]
[316102825,1709356243826,-500.0,0.00021808,2]
[316102827,1709356243835,-500.0,0.00021808,2]
[316102829,1709356243844,-607.19061952,0.00021808,2]
[316102831,1709356243853,-500.0,0.00021808,2]
[316102833,1709356243862,-500.0,0.00021808,2]
[316102835,1709356243872,-500.0,0.00021808,2]
[316102837,1709356243882,-500.0,0.00021808,2]
[316102839,1709356243891,-500.0,0.00021808,2]
[316102841,1709356243901,-500.0,0.00021811,2]
[316102843,1709356243911,-500.0,0.00021811,2]
[316102844,1709356243920,-500.0,0.00021812,2]
[316102847,1709356243930,-500.0,0.00021812,2]
[316102848,1709356243939,-813.48,0.00021813,2]
[316102850,1709356243949,-813.48,0.00021813,2]
[316102853,1709356243959,-813.48,0.00021813,2]
[316102855,1709356243969,-813.48,0.00021813,2]
[316102857,1709356243978,-813.48,0.00021813,2]
[316102858,1709356243987,-813.48,0.00021813,2]
[316102860,1709356243997,-813.48,0.00021813,2]
[316102862,1709356244007,-813.48,0.00021813,2]
[316102865,1709356244018,-500.0,0.00021813,2]
[316102866,1709356244026,-500.0,0.00021813,2]
[316102869,1709356244036,-152.75010862,0.00021813,2]
[316102870,1709356244047,-509.6697368,0.00021813,2]
[316102873,1709356244057,-9213.36726252,0.00021814,4]
[316102874,1709356244067,-95819.00750524,0.00021814,4]
[316102876,1709356244076,-5000.0,0.0002183,5]
[316102878,1709356244085,-5000.0,0.0002183,5]
[316102881,1709356244095,-5000.0,0.00021846,5]
[316102883,1709356244104,-2238.13153014,0.00021846,3]
[316102884,1709356244113,-559.38,0.00021913,2]
[316102886,1709356244121,-1447.61,0.00021913,2]
[316102888,1709356244131,-500.0,0.00021913,2]
[316102890,1709356244140,-586.18,0.00021913,2]
[316102892,1709356244149,-776.92,0.00021913,2]
[316102894,1709356244158,-951.56,0.00021913,2]
[316102896,1709356244168,-500.0,0.00021913,2]
[316102898,1709356244177,-619.84,0.00021917,2]
[316102900,1709356244187,-723.16,0.00021917,2]
[316102903,1709356244196,-500.0,0.00021917,2]
[316102905,1709356244206,-559.38,0.00021917,2]
[316102907,1709356244216,-1447.61,0.00021917,2]
[316102909,1709356244225,-500.0,0.00021917,2]
[316102911,1709356244235,-500.0,0.00021917,2]
[316102913,1709356244244,-586.18,0.00021917,2]
[316102915,1709356244254,-776.92,0.00021917,2]
[316102917,1709356244263,-951.56,0.00021917,2]
[316102919,1709356244273,-5871.45,0.00021917,2]
[316102921,1709356244282,-500.0,0.00021917,2]
[316102923,1709356244291,-51928.5053564,0.00021918,15]
[316102926,1709356244301,-1413.288124,0.00021918,2]
[316102927,1709356244310,-400.0,0.00021918,2]
[316102929,1709356244319,-724.43688504,0.00021952,2]
[316102931,1709356244329,-559.38,0.00021995,2]
[316102933,1709356244338,-1447.61,0.00021995,2]
[316102935,1709356244347,-500.0,0.00021995,2]
[316102937,1709356244356,-586.18,0.00021995,2]
[316102939,1709356244365,-776.92,0.00021995,2]
[316102941,1709356244374,-951.56,0.00021995,2]
[316102943,1709356244384,-500.0,0.00021995,2]
[316102945,1709356244393,-559.38,0.00021998,2]
[316102947,1709356244402,-559.38,0.00021998,2]
[316102949,1709356244411,-1447.61,0.00021998,2]
[316102951,1709356244420,-1447.61,0.00021998,2]
[316102954,1709356244430,-500.0,0.00021998,2]
[316102955,1709356244440,-500.0,0.00021998,2]
[316102958,1709356244451,-586.18,0.00021998,2]
[316102960,1709356244460,-586.18,0.00021998,2]
[316102962,1709356244470,-776.92,0.00021998,2]
[316102964,1709356244479,-776.92,0.00021998,2]
[316102965,1709356244488,-951.56,0.00021998,2]
[316102968,1709356244498,-951.56,0.00021998,2]
[316102977,1709356244578,-186.01,0.00021998,2]
[316102979,1709356244587,-619.84,0.00021999,2]
[316102981,1709356244597,-723.16,0.00021999,2]
[316102983,1709356244607,-500.0,0.00021999,2]
[316102985,1709356244616,-500.0,0.00021999,2]
[316102987,1709356244627,-5871.45,0.00021999,2]
[316102989,1709356244635,-10357.51393336,0.00022,2]
[316102991,1709356244645,-157.1486779,0.00022,2]
[316102993,1709356244655,-628.07137504,0.00022195,2]
[316102995,1709356244664,-724.43688504,0.00022196,2]
[316102997,1709356244674,-219.1502476,0.00022356,2]
[316102999,1709356244682,-306.9615974,0.00022356,2]
[316103001,1709356244692,-441.7994775,0.00022356,2]
[316103003,1709356244701,-257.5862545,0.00022356,2]
[316103005,1709356244710,-204.3595047,0.00022356,2]
[316103007,1709356244719,-306.5748401,0.00022356,2]
[316103009,1709356244729,-153.0,0.00022356,2]
[316103011,1709356244739,-200.7312975,0.00022356,2]
[316103013,1709356244748,-200.7312975,0.00022356,2]
[316103015,1709356244757,-153.0,0.00022356,2]
[316103017,1709356244766,-153.0,0.00022356,2]
[316103019,1709356244776,-200.7312975,0.00022356,2]
[316103021,1709356244785,-153.0,0.00022356,2]
[316103023,1709356244795,-200.7312975,0.00022356,2]
[316103025,1709356244803,-153.0,0.00022356,2]
[316103027,1709356244812,-200.7312975,0.00022356,2]
[316103029,1709356244821,-153.0,0.00022356,2]
[316103031,1709356244830,-200.7312975,0.00022356,2]
[316103033,1709356244839,-153.0,0.00022356,2]
[316103035,1709356244849,-200.7312975,0.00022356,2]
[316103037,1709356244858,-200.7312975,0.00022356,2]
[316103039,1709356244867,-1000.0,0.00022384,2]
[316103041,1709356244876,-724.43688504,0.00022439,2]
[316103043,1709356244885,-580.0,0.000225,2]
[316103045,1709356244894,-1315.218577,0.00022507,2]
[316103046,1709356244902,-201.308966,0.00022507,2]
[316103048,1709356244911,-999.83453,0.00022507,2]
[316103050,1709356244921,-724.43688504,0.00022683,2]
[316103053,1709356244932,-500.0,0.00022764,2]
[316103055,1709356244941,-500.0,0.00022764,2]
[316103057,1709356244951,-500.0,0.00022764,2]
[316103059,1709356244960,-500.0,0.00022764,2]
[316103060,1709356244969,-5871.45,0.00022764,2]
[316103063,1709356244979,-5871.45,0.00022764,2]
[316103065,1709356244988,-619.84,0.00022766,2]
[316103066,1709356244997,-619.84,0.00022766,2]
[316103068,1709356245007,-723.16,0.00022766,2]
[316103071,1709356245016,-723.16,0.00022766,2]
[316103073,1709356245026,-559.38,0.00022769,2]
[316103075,1709356245035,-1447.61,0.00022769,2]
[316103077,1709356245045,-500.0,0.00022769,2]
[316103079,1709356245054,-586.18,0.00022769,2]
[316103081,1709356245063,-776.92,0.00022769,2]
[316103083,1709356245072,-951.56,0.00022769,2]
[316103085,1709356245082,-619.84,0.00022773,2]
[316103087,1709356245091,-619.84,0.00022773,2]
[316103089,1709356245100,-723.16,0.00022773,2]
[316103091,1709356245110,-723.16,0.00022773,2]
[316103093,1709356245119,-500.0,0.00022773,2]
[316103095,1709356245128,-500.0,0.00022773,2]
[316103097,1709356245137,-559.38,0.00022773,2]
[316103099,1709356245148,-1447.61,0.00022773,2]
[316103101,1709356245157,-500.0,0.00022773,2]
[316103103,1709356245166,-500.0,0.00022773,2]
[316103105,1709356245175,-500.0,0.00022773,2]
[316103107,1709356245184,-586.18,0.00022773,2]
[316103109,1709356245193,-776.92,0.00022773,2]
[316103111,1709356245202,-951.56,0.00022773,2]
[316103113,1709356245211,-5871.45,0.00022773,2]
[316103115,1709356245220,-5871.45,0.00022773,2]
[316103117,1709356245230,-559.38,0.00022788,2]
[316103118,1709356245239,-1447.61,0.00022788,2]
[316103120,1709356245249,-500.0,0.00022788,2]
[316103122,1709356245258,-586.18,0.00022788,2]
[316103124,1709356245267,-776.92,0.00022788,2]
[316103127,1709356245276,-951.56,0.00022788,2]
[316103129,1709356245285,-1315.218577,0.00022789,2]
[316103131,1709356245296,-201.308966,0.00022789,2]
[316103132,1709356245306,-999.83453,0.00022789,2]
[316103133,1709356245316,-619.84,0.00022789,2]
[316103134,1709356245325,-723.16,0.00022789,2]
[316103135,1709356245334,-500.0,0.00022789,2]
[316103136,1709356245343,-559.38,0.00022789,2]
[316103137,1709356245352,-1447.61,0.00022789,2]
[316103138,1709356245361,-500.0,0.00022789,2]
[316103139,1709356245370,-419.69,0.00022789,2]
[316103140,1709356245380,-586.18,0.00022789,2]
[316103141,1709356245389,-776.92,0.00022789,2]
[316103142,1709356245398,-951.56,0.00022789,2]
[316103143,1709356245407,-5871.45,0.00022789,2]
[316103144,1709356245415,-24510.13296103,0.0002279,5]
[316103189,1709356245878,-585.24,0.00020547,2]
[316103191,1709356245888,-500.0,0.00020547,2]
[316103193,1709356245897,-585.24,0.00020988,2]
[316103195,1709356245907,-585.24,0.00021677,2]
[316103197,1709356245916,-585.24,0.00021721,2]
[316103199,1709356245925,-585.24,0.00021733,2]
[316103201,1709356245935,-585.24,0.00021738,2]
[316103203,1709356245944,-585.24,0.00021739,2]
[316103205,1709356245953,-585.24,0.00021746,2]
[316103207,1709356245962,-585.24,0.00021755,2]
[316103209,1709356245972,-585.24,0.00021756,2]
[316103211,1709356245981,-500.0,0.00021808,2]
[316103213,1709356245991,-500.0,0.00021808,2]
[316103215,1709356246000,-500.0,0.00021808,2]
[316103217,1709356246009,-500.0,0.00021808,2]
[316103219,1709356246018,-500.0,0.00021808,2]
[316103221,1709356246027,-500.0,0.00021808,2]
[316103223,1709356246036,-500.0,0.00021808,2]
[316103226,1709356246047,-500.0,0.00021808,2]
[316103227,1709356246057,-204.4532614,0.00021808,2]
[316103229,1709356246066,-500.0,0.00021808,2]
[316103232,1709356246075,-500.0,0.00021808,2]
[316103234,1709356246084,-500.0,0.00021808,2]
[316103235,1709356246094,-500.0,0.00021808,2]
[316103238,1709356246103,-500.0,0.00021808,2]
[316103240,1709356246113,-500.0,0.00021808,2]
[316103242,1709356246122,-500.0,0.00021808,2]
[316103252,1709356246207,-500.0,0.00021808,2]
[316103254,1709356246217,-500.0,0.00021808,2]
[316103256,1709356246226,-500.0,0.00021808,2]
[316103258,1709356246236,-500.0,0.00021808,2]
[316103260,1709356246245,-500.0,0.00021808,2]
[316103262,1709356246254,-500.0,0.00021808,2]
[316103264,1709356246263,-500.0,0.00021808,2]
[316103266,1709356246272,-500.0,0.00021808,2]
[316103268,1709356246281,-500.0,0.00021808,2]
[316103270,1709356246290,-524.10799921,0.00021808,2]
[316103272,1709356246301,-500.0,0.00021808,2]
[316103274,1709356246310,-500.0,0.00021808,2]
[316103276,1709356246319,-585.24,0.00021913,2]
[316103278,1709356246328,-585.24,0.00021917,2]
[316103280,1709356246337,-585.24,0.00021995,2]
[316103282,1709356246347,-25489.86703897,0.0002279,5]
[316103285,1709356246357,-813.49,0.00022828,2]
[316103287,1709356246366,-813.49,0.00022828,2]
[316103289,1709356246376,-50000.0,0.00022829,5]
[316103291,1709356246385,-1000.0,0.00022859,5]
[316103293,1709356246394,-724.43688504,0.00022926,2]
[316103294,1709356246403,-1000.0,0.00022933,5]
[316103296,1709356246412,-1000.0,0.00022935,5]
[316103298,1709356246421,-5871.45,0.00022939,2]
[316103300,1709356246430,-1447.61,0.00022943,2]
[316103302,1709356246439,-1447.61,0.00022943,2]
[316103304,1709356246449,-22.25953837,0.00022943,2]
[316103339,1709356246784,-585.24,0.00021998,2]
[316103341,1709356246793,-585.24,0.00021998,2]
[316103343,1709356246803,-585.24,0.00022769,2]
[316103345,1709356246812,-585.24,0.00022773,2]
[316103347,1709356246821,-585.24,0.00022788,2]
[316103349,1709356246830,-55.8,0.00022789,2]
[316104436,1709357103390,2680.78358992,0.00017092,5]
[316104437,1709357176461,1494.29591134,0.00017092,2]
[316104438,1709357194491,1494.29591134,0.00017092,2]
[316104440,1709357214464,1494.29591134,0.00017092,2]
[316104441,1709357234462,1494.29591134,0.00017092,2]
[316104442,1709357250466,1494.29591134,0.00017092,2]
[316104443,1709357266467,1494.29591134,0.00017092,2]
[316104445,1709357289237,1494.29591134,0.00017092,2]
[316104556,1709357434036,-159.96278637,0.00018887,2]
[316104558,1709357434045,-1592.56843785,0.00018887,2]
[316104560,1709357434054,-861.58766338,0.00018888,2]
[316104561,1709357434065,-321.4643478,0.00018888,2]
[316104563,1709357434074,-274.0783514,0.00018889,2]
[316104565,1709357434083,-410.55288059,0.000189,2]
[316104567,1709357434093,-214.107232,0.00019544,2]
[316104568,1709357434103,-24900.0,0.00019553,2]
[316104570,1709357434112,-157.73865583,0.00019566,2]
[316104572,1709357434120,-6123.4172633,0.00019666,2]
[316104574,1709357434130,-155.0697814,0.0002,2]
[316104576,1709357434139,-500.0,0.00020547,2]
[316104578,1709357434148,-500.0,0.00020547,2]
[316104580,1709357434157,-500.0,0.00020889,2]
[316104582,1709357434166,-500.0,0.00020889,2]
[316104584,1709357434175,-1999.44218435,0.000209,2]
[316104586,1709357434184,-500.0,0.00020989,2]
[316104588,1709357434193,-500.0,0.00020989,2]
[316104590,1709357434202,-421.89,0.0002099,3]
[316104592,1709357434212,-500.0,0.00020998,2]
[316104594,1709357434221,-500.0,0.00020998,2]
[316104596,1709357434230,-722.87,0.00020998,2]
[316104598,1709357434239,-500.0,0.00020998,2]
[316104600,1709357434248,-500.0,0.00020998,2]
[316104602,1709357434257,-500.0,0.00020998,2]
[316104604,1709357434266,-631.29,0.00020998,2]
[316104606,1709357434275,-500.0,0.00020998,2]
[316104608,1709357434284,-500.0,0.00020999,2]
[316104610,1709357434293,-500.0,0.00020999,2]
[316104612,1709357434302,-509.6697368,0.00020999,2]
[316104613,1709357434311,-500.0,0.00020999,2]
[316104615,1709357434320,-501.81946577,0.00020999,2]
[316104617,1709357434330,-1500.0,0.00021,2]
[316104620,1709357434339,-1500.0,0.00021,2]
[316104622,1709357434349,-1500.0,0.00021,2]
[316104623,1709357434358,-1500.0,0.00021,2]
[316104625,1709357434367,-1500.0,0.00021,2]
[316104627,1709357434376,-1500.0,0.00021,2]
[316104629,1709357434386,-1511.24,0.00021,2]
[316104631,1709357434395,-1500.0,0.00021,2]
[316104633,1709357434404,-1500.0,0.00021,2]
[316104636,1709357434413,-500.0,0.00021678,2]
[316104637,1709357434422,-500.0,0.00021678,2]
[316104639,1709357434431,-804.51,0.00021716,3]
[316104641,1709357434441,-500.0,0.00021721,2]
[316104644,1709357434451,-500.0,0.00021721,2]
[316104645,1709357434460,-500.0,0.00021725,2]
[316104648,1709357434470,-500.0,0.00021725,2]
[316104649,1709357434480,-500.0,0.00021726,2]
[316104651,1709357434489,-500.0,0.00021726,2]
[316104653,1709357434499,-500.0,0.00021726,2]
[316104655,1709357434509,-500.0,0.00021726,2]
[316104657,1709357434518,-510.12599277,0.00021726,2]
[316104659,1709357434527,-500.0,0.00021726,2]
[316104661,1709357434537,-544.71679012,0.00021726,2]
[316104663,1709357434546,-500.0,0.00021726,2]
[316104664,1709357434556,-633.28076739,0.00021726,2]
[316104665,1709357434565,-500.0,0.00021726,2]
[316104666,1709357434574,-500.0,0.00021726,2]
[316104667,1709357434583,-500.0,0.00021726,2]
[316104668,1709357434593,-426.54,0.00021726,2]
[316104669,1709357434602,-500.0,0.00021726,2]
[316104670,1709357434612,-3425.01,0.00021726,2]
[316104671,1709357434621,-500.0,0.00021737,2]
[316104672,1709357434630,-500.0,0.00021737,2]
[316104673,1709357434640,-500.0,0.00021737,2]
[316104674,1709357434649,-722.87,0.00021737,2]
[316104675,1709357434660,-500.0,0.00021737,2]
[316104676,1709357434669,-500.0,0.00021737,2]
[316104677,1709357434678,-631.29,0.00021737,2]
[316104678,1709357434687,-500.0,0.00021737,2]
[316104679,1709357434696,-500.0,0.00021738,2]
[316104680,1709357434705,-500.0,0.00021738,2]
[316104681,1709357434714,-500.0,0.00021738,2]
[316104682,1709357434723,-1091.84067917,0.0002175,2]
[316104683,1709357434732,-791.40623789,0.0002175,2]
[316104684,1709357434741,-700.0,0.0002175,2]
[316104685,1709357434750,-500.0,0.00021754,2]
[316104686,1709357434759,-500.0,0.00021754,2]
[316104687,1709357434768,-500.0,0.00021756,2]
[316104688,1709357434777,-500.0,0.00021756,2]
[316104689,1709357434786,-4434.08003094,0.00021757,2]
[316104690,1709357434796,-635.93482735,0.00021762,2]
[316104691,1709357434805,-1000.0,0.00021763,5]
[316104692,1709357434813,-500.0,0.00021768,2]
[316104693,1709357434823,-500.0,0.00021769,2]
[316104694,1709357434832,-500.0,0.00021769,2]
[316104695,1709357434841,-500.0,0.00021776,2]
[316104696,1709357434850,-722.87,0.00021776,2]
[316104697,1709357434860,-500.0,0.00021776,2]
[316104698,1709357434870,-500.0,0.00021776,2]
[316104699,1709357434879,-631.29,0.00021776,2]
[316104700,1709357434888,-500.0,0.00021776,2]
[316104701,1709357434898,-700.0,0.00021777,2]
[316104702,1709357434908,-1006.47419309,0.00021777,2]
[316104703,1709357434917,-500.0,0.00021788,2]
[316104704,1709357434928,-500.0,0.00021788,2]
[316104705,1709357434938,-500.0,0.00021809,2]
[316104706,1709357434948,-500.0,0.00021809,2]
[316104707,1709357434958,-500.0,0.00021809,2]
[316104708,1709357434966,-500.0,0.00021809,2]
[316104709,1709357434975,-500.0,0.00021811,2]
[316104710,1709357434984,-500.0,0.00021813,2]
[316104711,1709357434994,-500.0,0.00021813,2]
[316104712,1709357435004,-500.0,0.00021813,2]
[316104713,1709357435013,-500.0,0.00021813,2]
[316104714,1709357435022,-500.0,0.00021813,2]
[316104715,1709357435031,-500.0,0.00021813,2]
[316104716,1709357435041,-4483.43831623,0.00021891,3]
[316104717,1709357435051,-5000.0,0.00021891,5]
[316104718,1709357435060,-3817.24400465,0.00021902,3]
[316104719,1709357435070,-71375.45701112,0.00021907,4]
[316104720,1709357435079,-500.0,0.00021912,2]
[316104721,1709357435088,-500.0,0.00021912,2]
[316104722,1709357435099,-722.87,0.00021912,2]
[316104723,1709357435110,-500.0,0.00021912,2]
[316104724,1709357435119,-500.0,0.00021912,2]
[316104725,1709357435129,-631.29,0.00021912,2]
[316104726,1709357435139,-500.0,0.00021912,2]
[316104727,1709357435149,-15565.17733324,0.00021913,3]
[316104728,1709357435159,-5000.0,0.00021913,5]
[316104730,1709357435169,-5000.0,0.00021915,5]
[316104732,1709357435178,-500.0,0.00021916,2]
[316104734,1709357435187,-177.93267906,0.00021916,2]
[316104736,1709357435197,-500.0,0.00021916,2]
[316104738,1709357435206,-500.0,0.00021916,2]
[316104739,1709357435215,-500.0,0.00021916,2]
[316104751,1709357435317,-500.0,0.00021916,2]
[316104753,1709357435328,-3425.01,0.00021916,2]
[316104755,1709357435338,-500.0,0.00021917,2]
[316104757,1709357435348,-51928.5053564,0.00021918,15]
[316104759,1709357435359,-1413.288124,0.00021918,2]
[316104761,1709357435369,-400.0,0.00021918,2]
[316104763,1709357435380,-500.0,0.00021994,2]
[316104765,1709357435389,-500.0,0.00021998,2]
[316104767,1709357435398,-500.0,0.00021998,2]
[316104768,1709357435407,-587.41668158,0.00021998,2]
[316104769,1709357435416,-152.75010862,0.00021998,2]
[316104770,1709357435425,-10955.3,0.00022,2]
[316104771,1709357435434,-628.07137504,0.0002208,2]
[316104772,1709357435443,-157.1486779,0.00022081,2]
[316104774,1709357435452,-306.0,0.00022082,2]
[316104776,1709357435462,-181.4891728,0.00022082,2]
[316104777,1709357435472,-8235.44669183,0.00022764,2]
[316104778,1709357435481,-500.0,0.00022765,2]
[316104779,1709357435491,-722.87,0.00022765,2]
[316104780,1709357435501,-500.0,0.00022765,2]
[316104781,1709357435511,-500.0,0.00022765,2]
[316104782,1709357435521,-631.29,0.00022765,2]
[316104783,1709357435531,-253.16,0.00022765,2]
[316104784,1709357435541,-469.62493001,0.00022769,2]
[316104785,1709357435599,-5701.60319229,0.00022769,2]
[316104786,1709357435610,-155.20020827,0.00022789,2]
[316104787,1709357435619,-1000.0,0.00022936,5]
[316104788,1709357435628,-1000.0,0.00022939,5]
[316104789,1709357435638,-500.0,0.00022948,2]
[316104790,1709357435648,-500.0,0.00022948,2]
[316104791,1709357435658,-500.0,0.00022948,2]
[316104792,1709357435667,-3425.01,0.00022948,2]
[316104793,1709357435677,-1785.07537976,0.00022995,2]
[316104794,1709357435686,-5000.0,0.00022998,5]
[316104795,1709357435695,-500.0,0.00022999,2]
[316104796,1709357435705,-500.0,0.00022999,2]
[316104797,1709357435714,-500.0,0.00022999,2]
[316104798,1709357435723,-500.0,0.00022999,2]
[316104799,1709357435732,-500.0,0.00022999,2]
[316104800,1709357435743,-500.0,0.00022999,2]
[316104801,1709357435752,-722.87,0.00022999,2]
[316104802,1709357435762,-722.87,0.00022999,2]
[316104803,1709357435771,-406.20449462,0.00022999,2]
[316106285,1709358519475,214.107232,0.00018536,2]
[316108544,1709358632125,-717.98971949,0.00018865,2]